bitfinex/quotes_BTCUSD_20240815
["timestamp","ask_amount","ask_price","bid_price","bid_amount"]
[1723746085810,0.393,57892.0,57891.0,1.03524454]
[1723746086218,0.08777727,57916.0,57891.0,1.03524454]
[1723746086219,0.1962,57909.0,57896.0,0.345445]
[1723746086442,0.1962,57909.0,57908.0,0.518062]
[1723746086644,0.08577727,57908.0,57907.0,0.17269]
[1723746086849,0.08577727,57908.0,57900.0,0.17155454]
[1723746087068,0.28197727,57916.0,57915.0,0.517999]
[1723746087273,0.1962,57916.0,57915.0,0.863332]
[1723746087477,0.1962,57927.0,57926.0,0.172634]
[1723746087683,0.1962,57927.0,57915.0,0.1]
[1723746087891,0.08577727,57919.0,57894.0,0.44077417]
[1723746088098,0.08577727,57911.0,57905.0,0.172696]
[1723746088316,0.08577727,57923.0,57906.0,0.123]
[1723746088517,0.46127727,57923.0,57906.0,0.123]
[1723746088728,0.46127727,57923.0,57922.0,0.517936]
[1723746088729,0.3755,57923.0,57922.0,0.517936]
[1723746088935,0.1962,57927.0,57926.0,0.517902]
[1723746089145,0.3755,57931.0,57926.0,0.44418654]
[1723746089358,0.08577727,57930.0,57906.0,0.023]
[1723746089572,0.08577727,57930.0,57899.0,0.27287868]
[1723746089573,0.08577727,57923.0,57919.0,0.172654]
[1723746089771,0.08577727,57923.0,57911.0,0.1]
[1723746089978,0.08577727,57930.0,57921.0,0.345297]
[1723746090283,0.000902,57935.0,57915.0,0.34533]
[1723746090284,0.01534676,57929.0,57925.0,0.345273]
[1723746090454,0.01534676,57929.0,57915.0,0.34533]
[1723746090455,0.000902,57935.0,57934.0,0.86305]
[1723746090679,0.000902,57935.0,57934.0,1.30827]
[1723746090904,0.000902,57935.0,57934.0,1.72666417]
[1723746091120,0.000902,57935.0,57934.0,2.07239505]
[1723746091326,0.384846,57956.0,57955.0,0.862737]
[1723746091548,0.384846,57956.0,57955.0,0.68919654]
[1723746091763,0.384846,57956.0,57955.0,0.78919654]
[1723746091982,0.384846,57956.0,57939.0,0.05066445]
[1723746091983,0.384846,57956.0,57938.0,0.05066445]
[1723746092189,0.08577727,57948.0,57942.0,0.172584]
[1723746092400,0.08577727,57948.0,57930.0,0.05066445]
[1723746092401,0.4053,57941.0,57940.0,0.172592]
[1723746092626,0.4053,57949.0,57948.0,0.517705]
[1723746092866,0.4053,57949.0,57948.0,0.345137]
[1723746093080,0.42065292,57949.0,57946.0,0.172573]
[1723746093275,0.1844,57955.0,57936.0,0.05067294]
[1723746093276,0.08577727,57948.0,57936.0,0.05067294]
[1723746093510,0.08577727,57942.0,57937.0,0.17155454]
[1723746093717,0.1986,57940.0,57937.0,0.17155454]
[1723746093919,0.1986,57940.0,57916.0,0.05067294]
[1723746093920,0.01535366,57939.0,57916.0,0.05067294]
[1723746094143,0.10113093,57938.0,57937.0,0.172601]
[1723746094351,0.10113093,57938.0,57918.0,0.07600941]
[1723746094352,0.4119,57931.0,57918.0,0.07600941]
[1723746094565,0.01535029,57930.0,57922.0,0.51466362]
[1723746094771,0.01535029,57930.0,57906.0,0.05067294]
[1723746094772,0.01535029,57929.0,57909.0,0.07600941]
[1723746094969,0.01535029,57929.0,57905.0,0.44673289]
[1723746094970,0.08577727,57925.0,57911.0,0.345357]
[1723746095173,0.08577727,57925.0,57924.0,0.17264]
[1723746095397,0.4119,57931.0,57924.0,0.17155454]
[1723746095604,0.01534937,57930.0,57925.0,0.17155454]
[1723746095819,0.1986,57925.0,57905.0,0.05067294]
[1723746096026,0.08577727,57914.0,57906.0,0.17155454]
[1723746096231,0.08577727,57926.0,57896.0,0.39611394]
[1723746096232,0.08077727,57911.0,57896.0,0.39611394]
[1723746096431,0.0153458,57910.0,57902.0,0.172704]
[1723746096663,0.0153458,57910.0,57884.0,0.05067294]
[1723746096664,0.08577727,57905.0,57897.0,0.172719]
[1723746096873,0.08577727,57905.0,57892.0,0.345468]
[1723746096874,0.0153458,57904.0,57892.0,0.345468]
[1723746097084,0.4119,57903.0,57892.0,0.345468]
[1723746097327,0.0153425,57902.0,57878.0,0.1871]
[1723746097540,0.4119,57903.0,57883.0,0.68621816]
[1723746097739,0.4119,57903.0,57885.0,0.345511]
[1723746097740,0.01533942,57902.0,57885.0,0.345511]
[1723746098011,0.08577727,57899.0,57894.0,0.172728]
[1723746098216,0.4119,57903.0,57897.0,0.172719]
[1723746098355,0.4119,57903.0,57902.0,0.518116]
[1723746098553,0.345175,57942.0,57902.0,0.518116]
[1723746098554,0.57193361,57937.0,57902.0,0.17155454]
[1723746098809,0.51466362,57937.0,57921.0,0.517945]
[1723746099112,0.51466362,57937.0,57907.0,0.17155454]
[1723746099113,0.4119,57921.0,57918.0,0.345314]
[1723746099326,0.4119,57921.0,57896.0,0.3783]
[1723746099327,0.4119,57921.0,57919.0,0.34420854]
[1723746099534,0.01534626,57920.0,57919.0,0.17155454]
[1723746099742,0.10112353,57920.0,57887.0,0.05067294]
[1723746099939,0.08577727,57911.0,57896.0,0.17155454]
[1723746100148,0.01534626,57910.0,57897.0,0.123]
[1723746100279,0.08577727,57920.0,57898.0,0.17155454]
[1723746100280,0.01534626,57909.0,57898.0,0.17155454]
[1723746100481,1.01234089,57920.0,57919.0,0.001]
[1723746100734,1.01234089,57920.0,57898.0,0.17155454]
[1723746100735,0.4119,57919.0,57898.0,0.17155454]
[1723746100936,0.4119,57909.0,57898.0,0.17155454]
[1723746101145,0.01534269,57908.0,57898.0,0.17155454]
[1723746101346,0.08577727,57904.0,57898.0,0.17155454]
[1723746101680,0.4119,57909.0,57899.0,0.345427]
[1723746101817,0.01534963,57908.0,57902.0,0.172704]
[1723746102183,0.6105,57902.0,57876.0,0.00818]
[1723746102363,0.08577727,57897.0,57896.0,0.004]
[1723746102537,0.1011269,57897.0,57887.0,0.17155454]
[1723746102737,0.01534963,57896.0,57887.0,0.17155454]
[1723746102897,0.01534963,57895.0,57887.0,0.17155454]
[1723746103104,0.6105,57902.0,57887.0,0.17155454]
[1723746103318,0.01535258,57901.0,57900.0,0.172711]
[1723746103596,0.4119,57902.0,57900.0,0.34426554]
[1723746103784,0.4119,57902.0,57901.0,0.34426254]
[1723746104443,0.4119,57902.0,57900.0,0.1]
[1723746104610,0.4119,57902.0,57887.0,0.004]
[1723746104611,0.08577727,57901.0,57887.0,0.004]
[1723746104826,0.01535542,57900.0,57898.0,0.172717]
[1723746105043,0.01535542,57900.0,57887.0,0.004]
[1723746105044,0.4119,57902.0,57901.0,0.172708]
[1723746105286,0.6105,57910.0,57909.0,0.172684]
[1723746105428,0.4119,57910.0,57909.0,0.34423854]
[1723746105666,0.1986,57920.0,57909.0,0.34423854]
[1723746105667,0.4119,57920.0,57919.0,0.863272]
[1723746105865,0.4119,57920.0,57919.0,1.03482654]
[1723746106112,0.1986,57927.0,57919.0,1.13482654]
[1723746106340,0.000902,57935.0,57922.0,0.34529]
[1723746106341,0.4119,57929.0,57922.0,0.34529]
[1723746106477,0.4119,57929.0,57928.0,0.172628]
[1723746106689,0.427265,57929.0,57928.0,0.517884]
[1723746107288,0.427265,57929.0,57920.0,0.345301]
[1723746107493,0.08577727,57920.0,57914.0,0.05098431]
[1723746107703,0.08577727,57920.0,57910.0,0.10628043]
[1723746107704,0.08577727,57918.0,57910.0,0.22685066]
[1723746107917,0.4119,57929.0,57910.0,0.22685066]
[1723746107918,0.4119,57929.0,57928.0,0.172628]
[1723746108129,0.4119,57929.0,57928.0,0.517884]
[1723746108338,0.4119,57929.0,57921.0,0.05098431]
[1723746108339,0.42725976,57929.0,57921.0,0.05098431]
[1723746108562,0.08577727,57927.0,57922.0,0.17155454]
[1723746108798,0.42726007,57929.0,57920.0,0.15098431]
[1723746108799,0.01536007,57929.0,57928.0,0.86314]
[1723746109009,0.000902,57935.0,57928.0,0.86314]
[1723746109010,0.000902,57935.0,57934.0,0.51783]
[1723746109225,0.000902,57935.0,57934.0,1.86245]
[1723746109487,0.000902,57935.0,57934.0,0.48260958]
[1723746109739,0.412802,57935.0,57934.0,0.68938454]
[1723746109947,0.000902,57935.0,57934.0,1.47982454]
[1723746110167,0.000902,57935.0,57934.0,2.23071042]
[1723746110373,0.000902,57935.0,57934.0,1.88549042]
[1723746110798,0.000902,57935.0,57934.0,1.88949042]
[1723746111213,0.000902,57935.0,57934.0,2.01736421]
[1723746111416,0.000902,57935.0,57934.0,1.64914421]
[1723746111631,0.412802,57935.0,57934.0,0.48898359]
[1723746111842,0.412802,57935.0,57934.0,0.004]
[1723746111843,0.43894547,57935.0,57934.0,0.004]
[1723746112046,0.61050001,57935.0,57934.0,0.004]
[1723746112252,0.3855134,57935.0,57916.0,0.05116263]
[1723746112464,0.3855134,57935.0,57917.0,0.05116263]
[1723746112465,0.08577727,57920.0,57917.0,0.05116263]
[1723746112673,0.37015454,57919.0,57910.0,0.05547444]
[1723746112884,0.08577727,57914.0,57910.0,0.00431181]
[1723746113092,0.08577727,57913.0,57910.0,0.00431181]
[1723746113541,0.1986,57919.0,57910.0,0.00431181]
[1723746113747,0.1986,57919.0,57917.0,0.001]
[1723746114171,0.37015454,57919.0,57917.0,0.001]
[1723746114384,0.17155454,57918.0,57917.0,0.001]
[1723746114584,0.1986,57919.0,57917.0,0.001]
[1723746114786,0.3859,57918.0,57917.0,0.001]
[1723746115398,0.3879,57918.0,57917.0,0.001]
[1723746115602,0.3879,57918.0,57910.0,0.00431181]
[1723746115782,0.003,57913.0,57910.0,0.05558724]
[1723746116041,0.17655454,57913.0,57910.0,0.00431181]
[1723746116270,0.57365454,57912.0,57910.0,0.00431181]
[1723746116468,0.57365454,57912.0,57891.0,0.12822666]
[1723746116469,0.5988,57911.0,57895.0,0.05129066]
[1723746116712,0.5988,57911.0,57892.0,0.076936]
[1723746116713,0.002,57908.0,57894.0,0.05129066]
[1723746116935,0.5988,57911.0,57904.0,0.172698]
[1723746117150,0.5988,57911.0,57903.0,0.172701]
[1723746117362,0.08577727,57906.0,57903.0,0.05128308]
[1723746117566,0.5988,57911.0,57900.0,0.07692462]
[1723746117567,0.002,57910.0,57900.0,0.1282077]
[1723746117776,0.5988,57911.0,57902.0,0.345409]
[1723746117980,0.5988,57911.0,57903.0,0.19455454]
[1723746118398,0.08577727,57907.0,57901.0,0.05127857]
[1723746118603,0.08577727,57907.0,57897.0,0.05127857]
[1723746118810,0.5988,57911.0,57898.0,0.17155454]
[1723746119033,0.5988,57911.0,57899.0,0.05127857]
[1723746119034,0.4101,57911.0,57899.0,0.05127857]
[1723746119248,0.008,57911.0,57910.0,0.518044]
[1723746119456,0.1934,57922.0,57910.0,0.518044]
[1723746119457,0.4166,57920.0,57910.0,0.61691754]
[1723746119659,0.50237727,57920.0,57912.0,0.05127987]
[1723746119865,0.50237727,57920.0,57912.0,0.45972331]
[1723746119866,0.08577727,57914.0,57912.0,0.45972331]
[1723746120093,0.50237727,57920.0,57912.0,0.45972331]
[1723746120094,0.50237727,57920.0,57912.0,0.345345]
[1723746120302,0.08577727,57919.0,57917.0,0.07690892]
[1723746120500,0.08577727,57919.0,57911.0,0.05127853]
[1723746120714,0.08577727,57913.0,57910.0,0.05127853]
[1723746120921,0.002,57906.0,57905.0,0.05127853]
[1723746121138,0.002,57906.0,57901.0,0.05127853]
[1723746121139,0.28397727,57906.0,57901.0,0.05127853]
[1723746121344,0.28397727,57906.0,57897.0,0.345438]
[1723746121345,0.1982,57906.0,57905.0,0.22397453]
[1723746121559,0.4004,57919.0,57905.0,0.22283307]
[1723746121772,0.4004,57919.0,57909.0,0.39667022]
[1723746122001,0.4004,57919.0,57906.0,0.55442115]
[1723746122002,0.4004,57919.0,57910.0,0.22285976]
[1723746122210,0.4004,57919.0,57915.0,0.05130522]
[1723746122413,0.4008,57927.0,57917.0,0.05130522]
[1723746122640,0.08577727,57920.0,57917.0,0.05130522]
[1723746122871,0.08777727,57932.0,57912.0,0.12818154]
[1723746122872,0.48657727,57937.0,57928.0,0.172628]
[1723746123085,0.48657727,57937.0,57928.0,0.74349631]
[1723746123086,0.4008,57937.0,57928.0,0.74349631]
[1723746123295,0.51466362,57936.0,57928.0,0.023]
[1723746123501,0.002,57940.0,57931.0,0.05131797]
[1723746123709,0.002,57940.0,57925.0,0.12828792]
[1723746123710,0.4008,57932.0,57927.0,0.05131797]
[1723746123944,0.08577727,57929.0,57922.0,0.05132743]
[1723746124154,0.08577727,57929.0,57920.0,0.05132743]
[1723746124155,0.1949,57928.0,57920.0,0.05132743]
[1723746124372,0.002,57922.0,57911.0,0.172678]
[1723746124605,0.002,57920.0,57915.0,0.05133473]
[1723746124803,0.002,57920.0,57912.0,0.48544564]
[1723746124804,0.08777727,57917.0,57914.0,0.05133473]
[1723746125009,0.4008,57919.0,57911.0,0.05133473]
[1723746125238,0.000902,57935.0,57915.0,0.05133473]
[1723746125445,0.000902,57935.0,57930.0,0.345242]
[1723746125650,0.000902,57935.0,57934.0,0.17261]
[1723746125871,0.000902,57935.0,57934.0,0.91437847]
[1723746126305,0.000902,57935.0,57934.0,1.40282454]
[1723746126514,0.000902,57935.0,57934.0,1.88547873]
[1723746126727,0.3818,57946.0,57945.0,0.172577]
[1723746126728,1e-08,57946.0,57945.0,0.172577]
[1723746127145,1e-08,57946.0,57942.0,0.172585]
[1723746127352,1e-08,57946.0,57935.0,0.17155454]
[1723746127556,0.08577727,57936.0,57934.0,0.014]
[1723746127758,0.08577727,57943.0,57935.0,0.19455454]
[1723746127970,1e-08,57946.0,57943.0,0.172581]
[1723746128243,1e-08,57946.0,57945.0,0.003]
[1723746128541,1e-08,57946.0,57936.0,0.27155454]
[1723746128542,1e-08,57946.0,57943.0,0.172582]
[1723746128948,1e-08,57946.0,57936.0,0.32287422]
[1723746128949,1e-08,57946.0,57945.0,0.172577]
[1723746129403,1e-08,57946.0,57936.0,0.1]
[1723746129404,0.002,57943.0,57937.0,0.05131968]
[1723746129609,1e-08,57946.0,57937.0,0.05131968]
[1723746129610,1e-08,57946.0,57937.0,0.17155454]
[1723746129815,1e-08,57946.0,57928.0,0.20263936]
[1723746129816,0.08577727,57942.0,57929.0,0.05131968]
[1723746130029,0.08577727,57942.0,57928.0,0.1]
[1723746130030,0.002,57937.0,57934.0,0.008]
[1723746130250,0.002,57940.0,57928.0,0.172626]
[1723746130468,0.08577727,57942.0,57929.0,0.1]
[1723746130675,0.08577727,57942.0,57931.0,0.172618]
[1723746130882,0.08577727,57936.0,57929.0,0.1]
[1723746131304,0.08577727,57936.0,57934.0,0.007]
[1723746131502,0.002,57940.0,57929.0,0.1]
[1723746131707,0.08577727,57930.0,57926.0,0.05131968]
[1723746131919,0.002,57919.0,57913.0,0.05131968]
[1723746132135,0.002,57919.0,57908.0,0.10263936]
[1723746132136,0.002,57919.0,57909.0,0.05138682]
[1723746132341,0.08577727,57921.0,57910.0,0.345358]
[1723746132513,0.08577727,57921.0,57911.0,0.172677]
[1723746132715,0.08777727,57921.0,57909.0,0.05138682]
[1723746132921,0.08777727,57921.0,57906.0,0.05138682]
[1723746132922,0.002,57917.0,57906.0,0.05138682]
[1723746133128,0.002,57919.0,57906.0,0.345386]
[1723746133305,0.5785,57920.0,57914.0,0.345336]
[1723746133483,0.5785,57920.0,57916.0,0.173482]
[1723746133484,0.3818,57920.0,57916.0,0.173482]
[1723746133698,0.201746,57927.0,57916.0,0.00082]
[1723746134268,0.006,57917.0,57916.0,0.174483]
[1723746134463,0.201746,57927.0,57916.0,0.346147]
[1723746134717,0.08577727,57918.0,57916.0,0.00082]
[1723746134904,0.002,57917.0,57916.0,0.00082]
[1723746135415,0.3779,57917.0,57916.0,0.00082]
[1723746135619,0.54945454,57917.0,57916.0,0.00082]
[1723746135827,0.172676,57912.0,57896.0,0.5966]
[1723746136081,0.005046,57927.0,57913.0,0.345345]
[1723746136286,0.005046,57927.0,57911.0,0.05138682]
[1723746136499,0.005046,57927.0,57921.0,0.345296]
[1723746136700,0.005046,57927.0,57921.0,0.05138682]
[1723746136831,0.005046,57927.0,57923.0,0.05138682]
[1723746137033,0.08577727,57926.0,57918.0,0.05138682]
[1723746137306,0.005046,57927.0,57918.0,0.05138682]
[1723746137307,0.005046,57927.0,57919.0,0.19455454]
[1723746137453,0.005046,57927.0,57926.0,0.172634]
[1723746137651,0.005046,57927.0,57926.0,0.195634]
[1723746137928,0.005046,57927.0,57920.0,0.05138682]
[1723746138123,0.005046,57927.0,57921.0,0.014]
[1723746138124,0.006046,57927.0,57921.0,0.014]
[1723746138323,0.002,57921.0,57917.0,0.05138682]
[1723746138542,0.002,57917.0,57910.0,0.05138682]
[1723746138742,0.08760338,57912.0,57908.0,0.05138682]
[1723746138943,0.00182611,57906.0,57905.0,0.00082]
[1723746139104,0.08577727,57912.0,57905.0,0.00082]
[1723746139105,0.00182611,57908.0,57905.0,0.00082]
[1723746140007,0.08760338,57906.0,57905.0,0.00082]
[1723746140206,0.63635792,57906.0,57905.0,0.00082]
[1723746140402,0.63635792,57906.0,57905.0,0.01182]
[1723746140627,0.82985792,57906.0,57905.0,0.00082]
[1723746141104,0.82985792,57906.0,57905.0,0.01182]
[1723746141454,0.82985792,57906.0,57886.0,0.00082]
[1723746141455,0.00182611,57887.0,57886.0,0.00082]
[1723746141657,0.82985792,57887.0,57886.0,0.00082]
[1723746142469,0.00182611,57877.0,57876.0,0.00818]
[1723746142675,0.25915792,57877.0,57876.0,0.00818]
[1723746143294,0.63735792,57877.0,57876.0,0.00818]
[1723746144184,0.00182611,57867.0,57866.0,0.00818]
[1723746144365,0.63735792,57867.0,57866.0,0.00818]
[1723746146821,0.55158065,57867.0,57866.0,0.00818]
[1723746147029,0.38002611,57867.0,57866.0,0.00818]
[1723746147436,0.3782,57867.0,57866.0,0.00818]
[1723746147585,0.001,57867.0,57866.0,0.01718]
[1723746147793,0.001,57867.0,57866.0,0.189993]
[1723746147991,0.001,57867.0,57866.0,0.01718]
[1723746148179,0.3781,57874.0,57866.0,0.00818]
[1723746148374,0.3781,57874.0,57866.0,0.01618]
[1723746148375,0.001,57867.0,57866.0,0.01618]
[1723746149366,0.001,57867.0,57866.0,0.188993]
[1723746149567,0.00182611,57883.0,57873.0,0.345581]
[1723746149696,0.51466362,57883.0,57876.0,0.172781]
[1723746149895,0.3915,57886.0,57867.0,0.17155454]
[1723746150126,0.3915,57886.0,57871.0,0.345594]
[1723746150326,0.3915,57886.0,57868.0,0.123]
[1723746150327,0.08577727,57881.0,57868.0,0.123]
[1723746150485,0.08577727,57881.0,57866.0,0.01618]
[1723746150486,0.08577727,57875.0,57866.0,0.01618]
[1723746150688,0.001,57867.0,57866.0,0.02618]
[1723746151169,0.00161831,57867.0,57866.0,0.00818]
[1723746151529,0.3915,57868.0,57866.0,0.00818]
[1723746151731,0.00161831,57873.0,57866.0,0.00818]
[1723746152011,0.3915,57877.0,57866.0,0.00818]
[1723746152012,0.00161831,57876.0,57866.0,0.00818]
[1723746152235,0.08577727,57875.0,57866.0,0.00818]
[1723746152858,0.08577727,57887.0,57866.0,0.00818]
[1723746152859,0.00161831,57884.0,57866.0,0.00818]
[1723746153064,0.17155454,57883.0,57866.0,0.00818]
[1723746153412,0.47727727,57887.0,57868.0,0.4127]
[1723746153413,0.00161831,57885.0,57868.0,0.4127]
[1723746153725,0.00161831,57885.0,57869.0,0.29455454]
[1723746153928,0.00161831,57883.0,57869.0,0.29455454]
[1723746154140,0.47727727,57887.0,57869.0,0.1]
[1723746154141,0.08739558,57875.0,57869.0,0.1]
[1723746154498,0.08577727,57875.0,57869.0,0.1]
[1723746154734,0.5941,57904.0,57871.0,0.4127]
[1723746154936,0.5941,57904.0,57872.0,0.29455454]
[1723746154937,0.51466362,57892.0,57872.0,0.29455454]
[1723746155160,0.08577727,57891.0,57872.0,0.29455454]
[1723746155512,0.08398508,57891.0,57872.0,0.29455454]
[1723746155690,0.00161831,57902.0,57873.0,0.17155454]
[1723746155899,0.00161831,57902.0,57879.0,0.3882]
[1723746156151,0.51466362,57893.0,57886.0,0.345506]
[1723746156352,0.00161831,57898.0,57887.0,0.44430254]
[1723746156552,0.08577727,57900.0,57891.0,0.345476]
[1723746156553,0.00161831,57899.0,57891.0,0.345476]
[1723746156770,0.00161831,57899.0,57887.0,0.4455]
[1723746156771,0.08577727,57894.0,57887.0,0.4455]
[1723746156962,0.08577727,57894.0,57887.0,0.1]
[1723746157089,0.08077727,57894.0,57889.0,0.345487]
[1723746157295,0.08577727,57900.0,57893.0,0.172732]
[1723746157519,0.08577727,57900.0,57887.0,0.1]
[1723746157715,0.08577727,57888.0,57880.0,0.023]
[1723746157916,0.08577727,57888.0,57873.0,0.172791]
[1723746157917,0.08577727,57882.0,57873.0,0.172791]
[1723746158119,0.08577727,57888.0,57872.0,0.733789]
[1723746158364,0.08577727,57888.0,57878.0,0.345551]
[1723746158511,0.1806,57899.0,57889.0,0.172742]
[1723746158755,0.35215454,57899.0,57887.0,0.172749]
[1723746159088,0.08577727,57894.0,57880.0,0.34554]
[1723746159290,0.08577727,57894.0,57887.0,0.172748]
[1723746159510,0.08577727,57893.0,57881.0,0.17155454]
[1723746159711,0.08577727,57887.0,57882.0,0.023]
[1723746159904,0.08577727,57887.0,57874.0,0.27155454]
[1723746160181,0.08577727,57887.0,57879.0,0.172774]
[1723746160383,0.08577727,57887.0,57880.0,0.468537]
[1723746160584,0.08577727,57887.0,57880.0,0.1]
[1723746161007,0.00161831,57898.0,57884.0,0.345513]
[1723746161125,0.001,57887.0,57886.0,0.518259]
[1723746161341,0.00161831,57898.0,57888.0,0.345493]
[1723746161543,0.00161831,57898.0,57886.0,0.368506]
[1723746161544,0.08577727,57897.0,57889.0,0.023]
[1723746162146,0.08577727,57891.0,57873.0,0.345581]
[1723746162352,0.08577727,57885.0,57880.0,0.014]
[1723746162555,0.17155454,57884.0,57880.0,0.014]
[1723746162972,0.3813,57886.0,57880.0,0.014]
[1723746163173,0.08577727,57891.0,57866.0,0.00818]
[1723746163174,0.00161831,57885.0,57878.0,0.345552]
[1723746163371,0.00161831,57885.0,57878.0,0.17155454]
[1723746163673,0.00161831,57885.0,57880.0,0.345537]
[1723746163864,0.00161831,57885.0,57866.0,0.00818]
[1723746163865,0.00090311,57884.0,57879.0,0.17155454]
[1723746164085,0.00090311,57884.0,57883.0,0.172762]
[1723746164276,0.00090311,57884.0,57866.0,0.04279]
[1723746164277,0.08577727,57883.0,57878.0,0.014]
[1723746164479,0.00090311,57884.0,57878.0,0.014]
[1723746164705,0.00090311,57884.0,57883.0,0.518286]
[1723746164946,0.00090311,57884.0,57883.0,0.172762]
[1723746165127,0.001,57885.0,57884.0,0.172759]
[1723746165253,0.00161831,57891.0,57883.0,0.17155454]
[1723746165456,0.08577727,57889.0,57870.0,0.1728]
[1723746165700,0.408,57882.0,57871.0,0.1]
[1723746165903,0.408,57882.0,57862.0,0.538044]
[1723746165904,0.408,57882.0,57866.0,0.353801]
[1723746166077,0.408,57882.0,57866.0,0.17973454]
[1723746166281,0.408,57882.0,57866.0,0.00818]
[1723746166282,0.08577727,57877.0,57866.0,0.00818]
[1723746166531,0.408,57882.0,57866.0,0.00818]
[1723746166876,0.00161831,57879.0,57878.0,0.014]
[1723746167175,0.00161831,57879.0,57866.0,0.00818]
[1723746167176,0.00161831,57875.0,57866.0,0.00818]
[1723746167384,0.00161831,57875.0,57866.0,0.02218]
[1723746167602,0.00161831,57875.0,57866.0,0.00818]
[1723746167791,0.08577727,57871.0,57866.0,0.00818]
[1723746167968,0.08577727,57871.0,57866.0,0.01718]
[1723746168173,0.08577727,57871.0,57866.0,0.00818]
[1723746168553,0.25733181,57871.0,57866.0,0.01618]
[1723746168760,0.001,57875.0,57874.0,0.172789]
[1723746168958,0.08577727,57897.0,57874.0,0.0995]
[1723746169331,0.08577727,57891.0,57875.0,0.20616454]
[1723746169938,0.08577727,57897.0,57886.0,0.345504]
[1723746170181,0.08577727,57897.0,57880.0,0.17277]
[1723746170182,0.08577727,57891.0,57880.0,0.17277]
[1723746170395,0.08577727,57882.0,57876.0,0.023]
[1723746170610,0.08577727,57882.0,57866.0,0.00818]
[1723746170611,0.17155454,57881.0,57866.0,0.00818]
[1723746170824,0.17155454,57881.0,57866.0,0.02218]
[1723746170825,0.001,57871.0,57866.0,0.02218]
[1723746171029,0.08577727,57876.0,57866.0,0.00818]
[1723746171030,0.08577727,57870.0,57866.0,0.00818]
[1723746171668,0.00161831,57880.0,57867.0,0.17155454]
[1723746171873,0.08577727,57912.0,57867.0,0.17155454]
[1723746171874,0.08577727,57879.0,57867.0,0.172808]
[1723746172080,0.08577727,57879.0,57866.0,0.02218]
[1723746172081,0.00161831,57867.0,57866.0,0.02218]
[1723746172284,0.00161831,57868.0,57866.0,0.00818]
[1723746172483,0.08577727,57891.0,57866.0,0.00818]
[1723746172484,0.00161831,57880.0,57875.0,0.172784]
[1723746172709,0.00161831,57880.0,57873.0,0.345578]
[1723746172939,0.00161831,57880.0,57867.0,0.345619]
[1723746172940,0.08577727,57879.0,57868.0,0.172806]
[1723746173158,0.20081831,57884.0,57875.0,0.345572]
[1723746173366,0.193,57891.0,57876.0,0.17155454]
[1723746173580,0.51466362,57890.0,57883.0,0.172761]
[1723746173783,0.193,57891.0,57878.0,0.172776]
[1723746174045,0.193,57891.0,57879.0,0.123]
[1723746174046,0.08577727,57890.0,57879.0,0.123]
[1723746174471,0.08577727,57890.0,57881.0,0.172766]
[1723746174879,0.08577727,57884.0,57883.0,0.014]
[1723746175262,0.08577727,57884.0,57872.0,0.1]
[1723746175478,0.08577727,57876.0,57872.0,0.1]
[1723746175821,0.08577727,57876.0,57866.0,0.10818]
[1723746176002,0.3861,57875.0,57866.0,0.10818]
[1723746176331,0.3861,57875.0,57866.0,0.00818]
[1723746176742,0.00161831,57867.0,57866.0,0.00818]
[1723746177723,0.00161831,57867.0,57866.0,0.02218]
[1723746177910,0.17317285,57867.0,57866.0,0.02218]
[1723746178086,0.17317285,57867.0,57866.0,0.00818]
[1723746178282,0.17317285,57867.0,57866.0,0.02218]
[1723746178283,0.57460578,57867.0,57866.0,0.02218]
[1723746178483,0.57460578,57867.0,57866.0,0.00818]
[1723746178484,0.57460592,57867.0,57866.0,0.00818]
[1723746178687,0.5744416,57867.0,57866.0,0.00818]
[1723746179340,0.75296119,57867.0,57866.0,0.00818]
[1723746179544,1.09858119,57867.0,57866.0,0.00818]
[1723746179762,1.12621082,57867.0,57866.0,0.00818]
[1723746179973,0.56037799,57862.0,57861.0,0.00818]
[1723746180184,1.37740146,57862.0,57861.0,0.00818]
[1723746180387,1.37740146,57862.0,57858.0,0.00822]
[1723746180388,0.38755399,57859.0,57858.0,0.00822]
[1723746180589,0.58015119,57859.0,57858.0,0.00822]
[1723746180809,0.56481896,57859.0,57858.0,0.00822]
[1723746181000,0.58014809,57859.0,57858.0,0.00822]
[1723746181205,1.78998209,57859.0,57858.0,0.00822]
[1723746181409,1.78998209,57859.0,57843.0,0.00818]
[1723746181410,0.00145399,57848.0,57843.0,0.00818]
[1723746181668,0.00145399,57838.0,57833.0,0.00842]
[1723746181910,0.17300853,57838.0,57833.0,0.00842]
[1723746182136,0.08577727,57834.0,57833.0,0.00842]
[1723746182330,0.08577727,57834.0,57818.0,0.00076684]
[1723746182331,0.00145399,57819.0,57818.0,0.00076684]
[1723746182568,0.17155454,57833.0,57818.0,0.00076684]
[1723746182779,0.17155454,57833.0,57819.0,0.051425]
[1723746183203,0.08577727,57822.0,57818.0,0.00076684]
[1723746183438,0.55765454,57821.0,57818.0,0.00076684]
[1723746184105,0.193,57820.0,57818.0,0.00076684]
[1723746184320,0.17155454,57819.0,57818.0,0.00076684]
[1723746184528,0.25952198,57819.0,57818.0,0.00076684]
[1723746184761,0.1758788,57819.0,57818.0,0.00076684]
[1723746184965,0.3488318,57819.0,57818.0,0.01476684]
[1723746185209,0.4003,57817.0,57811.0,0.0002]
[1723746185416,0.08577727,57812.0,57811.0,0.0002]
[1723746185612,0.66195675,57812.0,57811.0,0.0002]
[1723746186248,0.193,57820.0,57811.0,0.0002]
[1723746186534,0.1897,57829.0,57813.0,0.345941]
[1723746186768,0.1897,57829.0,57811.0,0.0002]
[1723746186769,0.005,57819.0,57818.0,0.001]
[1723746187041,0.17155454,57819.0,57811.0,0.0002]
[1723746187256,0.08577727,57826.0,57811.0,0.0002]
[1723746187468,0.001,57812.0,57811.0,0.180177]
[1723746187708,0.17155454,57825.0,57811.0,0.346154]
[1723746187911,0.17155454,57825.0,57812.0,0.345946]
[1723746188083,0.59,57829.0,57818.0,0.352913]
[1723746188084,0.001,57819.0,57818.0,0.352913]
[1723746188289,0.4155,57840.0,57831.0,0.345831]